[Event "Late-Titled-Tuesday-Blitz-September-19-2023"]
[Site "Chess.com"]
[Date "2023.09.19"]
[Round "2"]
[White "Mikhail_Golubev"]
[Black "artin10862"]
[Result "0-1"]
[WhiteElo "2566"]
[BlackElo "2925"]
[TimeControl "180+1"]
[EndTime "14:17:41 PDT"]
[Termination "artin10862 won on time"]

1. e4 {[%clk 0:03:00.9]} 1... c5 {[%clk 0:02:59.3]} 2. Nf3 {[%clk 0:03:01]} 2...
d6 {[%clk 0:02:59.8]} 3. d4 {[%clk 0:03:01.5]} 3... cxd4 {[%clk 0:03:00.7]} 4.
Nxd4 {[%clk 0:03:02]} 4... Nf6 {[%clk 0:03:01.2]} 5. Nc3 {[%clk 0:03:02.5]} 5...
a6 {[%clk 0:03:01.9]} 6. Bc4 {[%clk 0:03:01.4]} 6... Nc6 {[%clk 0:02:56.7]} 7.
Nxc6 {[%clk 0:02:48.6]} 7... bxc6 {[%clk 0:02:55.9]} 8. e5 {[%clk 0:02:48.5]}
8... Ng8 {[%clk 0:02:24.4]} 9. exd6 {[%clk 0:02:33.1]} 9... exd6 {[%clk
0:02:21.1]} 10. O-O {[%clk 0:02:32.6]} 10... d5 {[%clk 0:02:21.4]} 11. Nxd5
{[%clk 0:02:29.6]} 11... cxd5 {[%clk 0:02:20.2]} 12. Bxd5 {[%clk 0:02:30.2]}
12... Be6 {[%clk 0:01:54.6]} 13. Bc6+ {[%clk 0:02:15.7]} 13... Bd7 {[%clk
0:01:50.4]} 14. Re1+ {[%clk 0:02:11.8]} 14... Be7 {[%clk 0:01:49.7]} 15. Bxa8
{[%clk 0:02:02]} 15... Qxa8 {[%clk 0:01:49.4]} 16. Bg5 {[%clk 0:01:56.9]} 16...
Be6 {[%clk 0:01:46.9]} 17. Qh5 {[%clk 0:01:41.1]} 17... Qd5 {[%clk 0:01:38.3]}
18. h4 {[%clk 0:01:28]} 18... Nf6 {[%clk 0:01:25.8]} 19. Qe2 {[%clk 0:01:27.2]}
19... Qc6 {[%clk 0:01:22.9]} 20. c4 {[%clk 0:00:58.8]} 20... O-O {[%clk
0:01:22]} 21. b3 {[%clk 0:00:54.4]} 21... h6 {[%clk 0:01:20.8]} 22. Bf4 {[%clk
0:00:52.9]} 22... Ng4 {[%clk 0:01:16]} 23. Bg3 {[%clk 0:00:49]} 23... Nf6 {[%clk
0:01:12.5]} 24. Qe5 {[%clk 0:00:43]} 24... Ra8 {[%clk 0:01:06.5]} 25. Qa5 {[%clk
0:00:41.6]} 25... Qb7 {[%clk 0:01:04.3]} 26. Re2 {[%clk 0:00:35]} 26... Bb4
{[%clk 0:00:59.2]} 27. Qe5 {[%clk 0:00:33.3]} 27... a5 {[%clk 0:00:56.5]} 28.
Rd1 {[%clk 0:00:29.8]} 28... Bf8 {[%clk 0:00:46.7]} 29. Qb5 {[%clk 0:00:25.5]}
29... Qa7 {[%clk 0:00:40.4]} 30. Bd6 {[%clk 0:00:21.9]} 30... Bg4 {[%clk
0:00:33.1]} 31. Bxf8 {[%clk 0:00:18.3]} 31... Rxf8 {[%clk 0:00:31]} 32. Rde1
{[%clk 0:00:12]} 32... Bxe2 {[%clk 0:00:29]} 33. Rxe2 {[%clk 0:00:12.9]} 33...
Qc7 {[%clk 0:00:27.8]} 34. g3 {[%clk 0:00:12]} 34... Rd8 {[%clk 0:00:27.5]} 35.
Qe5 {[%clk 0:00:11.4]} 35... Qb6 {[%clk 0:00:20.9]} 36. Qe3 {[%clk 0:00:09.5]}
36... Rd1+ {[%clk 0:00:16.8]} 37. Kg2 {[%clk 0:00:09.3]} 37... Qc6+ {[%clk
0:00:17.3]} 38. f3 {[%clk 0:00:09.6]} 38... Qd7 {[%clk 0:00:16.2]} 39. Qe5
{[%clk 0:00:06.8]} 39... Qa7 {[%clk 0:00:15]} 40. c5 {[%clk 0:00:03.5]} 40...
Rc1 {[%clk 0:00:14]} 41. Qd6 {[%clk 0:00:01.4]} 41... Qxc5 {[%clk 0:00:09.9]}
42. Qd8+ {[%clk 0:00:01.2]} 42... Kh7 {[%clk 0:00:07.9]} 43. Qd3+ {[%clk
0:00:01.6]} 43... g6 {[%clk 0:00:08.4]} 44. Re7 {[%clk 0:00:01]} 44... Qg1+
{[%clk 0:00:07.3]} 0-1

[Event "Late-Titled-Tuesday-Blitz-September-19-2023"]
[Site "Chess.com"]
[Date "2023.09.19"]
[Round "2"]
[White "lefonghua"]
[Black "mishanick"]
[Result "1/2-1/2"]
[WhiteElo "2651"]
[BlackElo "3111"]
[TimeControl "180+1"]
[EndTime "14:17:42 PDT"]
[Termination "Game drawn by repetition"]

1. d4 {[%clk 0:03:00.9]} 1... Nf6 {[%clk 0:02:59.9]} 2. c4 {[%clk 0:03:01]} 2...
e6 {[%clk 0:03:00.2]} 3. Nc3 {[%clk 0:03:01.3]} 3... d5 {[%clk 0:03:00.5]} 4.
cxd5 {[%clk 0:03:01.4]} 4... exd5 {[%clk 0:03:01.4]} 5. Bg5 {[%clk 0:03:01.8]}
5... c6 {[%clk 0:02:58.4]} 6. e3 {[%clk 0:03:02.2]} 6... Be7 {[%clk 0:02:56.7]}
7. Bd3 {[%clk 0:03:02.1]} 7... Nbd7 {[%clk 0:02:56.8]} 8. Qc2 {[%clk 0:03:02.4]}
8... Nh5 {[%clk 0:02:46.2]} 9. Bxe7 {[%clk 0:03:00.9]} 9... Qxe7 {[%clk
0:02:47.1]} 10. Nge2 {[%clk 0:03:01.3]} 10... Nb6 {[%clk 0:02:46.6]} 11. O-O
{[%clk 0:03:00.9]} 11... Bg4 {[%clk 0:02:38.3]} 12. Rae1 {[%clk 0:02:55.9]}
12... g6 {[%clk 0:02:31.4]} 13. Nc1 {[%clk 0:02:52.3]} 13... O-O {[%clk
0:02:22.4]} 14. f3 {[%clk 0:02:50.8]} 14... Be6 {[%clk 0:02:22.8]} 15. Nb3
{[%clk 0:02:43.6]} 15... Rad8 {[%clk 0:02:18.8]} 16. Nc5 {[%clk 0:02:32.3]}
16... Bc8 {[%clk 0:02:18.9]} 17. b4 {[%clk 0:02:28.2]} 17... f5 {[%clk
0:02:15.1]} 18. a4 {[%clk 0:02:19.7]} 18... Nd7 {[%clk 0:02:13.2]} 19. a5 {[%clk
0:02:13.6]} 19... a6 {[%clk 0:02:08.4]} 20. Nxd7 {[%clk 0:02:09.9]} 20... Qxd7
{[%clk 0:02:06.3]} 21. Na4 {[%clk 0:02:08.9]} 21... Qe7 {[%clk 0:02:04.2]} 22.
Nc5 {[%clk 0:02:02]} 22... Qf6 {[%clk 0:02:04.6]} 23. Qc3 {[%clk 0:01:54.8]}
23... Rfe8 {[%clk 0:02:03.2]} 24. Bc2 {[%clk 0:01:53.2]} 24... Re7 {[%clk
0:02:01.6]} 25. Nd3 {[%clk 0:01:52.2]} 25... f4 {[%clk 0:01:46.1]} 26. Ne5
{[%clk 0:01:47.6]} 26... fxe3 {[%clk 0:01:43.8]} 27. Rxe3 {[%clk 0:01:47.9]}
27... Nf4 {[%clk 0:01:41.7]} 28. g3 {[%clk 0:01:41]} 28... Nh3+ {[%clk
0:01:39.8]} 29. Kg2 {[%clk 0:01:36.1]} 29... Ng5 {[%clk 0:01:40.2]} 30. Rfe1
{[%clk 0:01:29.5]} 30... Bh3+ {[%clk 0:01:37.4]} 31. Kg1 {[%clk 0:01:27.4]}
31... Rde8 {[%clk 0:01:36.4]} 32. f4 {[%clk 0:01:26.8]} 32... Ne6 {[%clk
0:01:34.3]} 33. Bd3 {[%clk 0:01:19.9]} 33... Bf5 {[%clk 0:01:27.4]} 34. Bxf5
{[%clk 0:01:17.7]} 34... Qxf5 {[%clk 0:01:28.3]} 35. Nf3 {[%clk 0:01:05]} 35...
Qf6 {[%clk 0:01:28.3]} 36. Qd2 {[%clk 0:01:03.1]} 36... Ng7 {[%clk 0:01:24.6]}
37. Rxe7 {[%clk 0:00:58.7]} 37... Rxe7 {[%clk 0:01:25.5]} 38. Re5 {[%clk
0:00:53]} 38... Nf5 {[%clk 0:01:23.5]} 39. Qe1 {[%clk 0:00:49.7]} 39... Kf8
{[%clk 0:01:21.4]} 40. Rxe7 {[%clk 0:00:46]} 40... Qxe7 {[%clk 0:00:35.6]} 41.
Kf2 {[%clk 0:00:44.5]} 41... Qd6 {[%clk 0:00:31.8]} 42. Qe5 {[%clk 0:00:38.4]}
42... Qxb4 {[%clk 0:00:20.4]} 43. Qh8+ {[%clk 0:00:36.6]} 43... Ke7 {[%clk
0:00:20.3]} 44. Qxh7+ {[%clk 0:00:36.5]} 44... Kd8 {[%clk 0:00:21]} 45. Qxg6
{[%clk 0:00:31.4]} 45... Qb2+ {[%clk 0:00:20.7]} 46. Kg1 {[%clk 0:00:26.9]}
46... Qb1+ {[%clk 0:00:20.8]} 47. Kf2 {[%clk 0:00:25]} 47... Qc2+ {[%clk
0:00:20.7]} 48. Kg1 {[%clk 0:00:24.1]} 48... Qc1+ {[%clk 0:00:20.3]} 49. Kg2
{[%clk 0:00:17.9]} 49... Ne3+ {[%clk 0:00:20.6]} 50. Kh3 {[%clk 0:00:18.4]}
50... Qf1+ {[%clk 0:00:20.6]} 51. Kh4 {[%clk 0:00:19]} 51... Qxf3 {[%clk
0:00:12.4]} 52. Qd6+ {[%clk 0:00:18.5]} 52... Kc8 {[%clk 0:00:12]} 53. Qe6+
{[%clk 0:00:18.7]} 53... Kc7 {[%clk 0:00:12]} 54. Qe7+ {[%clk 0:00:19.2]} 54...
Kb8 {[%clk 0:00:12.4]} 55. Qf8+ {[%clk 0:00:18.4]} 55... Ka7 {[%clk 0:00:12]}
56. Qc5+ {[%clk 0:00:18.3]} 56... b6 {[%clk 0:00:09]} 57. Qxb6+ {[%clk
0:00:17.6]} 57... Ka8 {[%clk 0:00:09.6]} 58. Qxa6+ {[%clk 0:00:18.1]} 58... Kb8
{[%clk 0:00:10.1]} 59. Qb6+ {[%clk 0:00:18.9]} 59... Kc8 {[%clk 0:00:10.6]} 60.
Qxc6+ {[%clk 0:00:19.7]} 60... Kd8 {[%clk 0:00:11]} 61. Qd6+ {[%clk 0:00:20.5]}
61... Kc8 {[%clk 0:00:11.3]} 62. Qc6+ {[%clk 0:00:20.9]} 62... Kb8 {[%clk
0:00:11.8]} 63. Qb6+ {[%clk 0:00:21.4]} 63... Kc8 {[%clk 0:00:12.2]} 64. Qc6+
{[%clk 0:00:21.9]} 1/2-1/2

[Event "Late-Titled-Tuesday-Blitz-September-19-2023"]
[Site "Chess.com"]
[Date "2023.09.19"]
[Round "2"]
[White "nitpicker"]
[Black "MalyDominator"]
[Result "1/2-1/2"]
[WhiteElo "2240"]
[BlackElo "2454"]
[TimeControl "180+1"]
[EndTime "14:17:43 PDT"]
[Termination "Game drawn by repetition"]

1. d4 {[%clk 0:03:00.9]} 1... Nf6 {[%clk 0:02:57.4]} 2. c4 {[%clk 0:03:00.7]}
2... g6 {[%clk 0:02:58.3]} 3. Nc3 {[%clk 0:03:00.2]} 3... Bg7 {[%clk 0:02:56.5]}
4. e4 {[%clk 0:02:59.5]} 4... d6 {[%clk 0:02:57.4]} 5. Be2 {[%clk 0:02:59]} 5...
O-O {[%clk 0:02:48.2]} 6. Nf3 {[%clk 0:02:58.3]} 6... e5 {[%clk 0:02:47.7]} 7.
O-O {[%clk 0:02:58.1]} 7... Nc6 {[%clk 0:02:22.6]} 8. d5 {[%clk 0:02:57.3]} 8...
Ne7 {[%clk 0:02:21.9]} 9. a4 {[%clk 0:02:57.4]} 9... a5 {[%clk 0:02:20]} 10. b3
{[%clk 0:02:55.5]} 10... Nd7 {[%clk 0:02:20.6]} 11. Ne1 {[%clk 0:02:55.1]} 11...
f5 {[%clk 0:02:21]} 12. f3 {[%clk 0:02:54.9]} 12... f4 {[%clk 0:02:21.7]} 13.
Nd3 {[%clk 0:02:53.7]} 13... g5 {[%clk 0:02:22.1]} 14. Ba3 {[%clk 0:02:52.5]}
14... b6 {[%clk 0:02:22.3]} 15. b4 {[%clk 0:02:52.7]} 15... Ng6 {[%clk
0:02:19.5]} 16. bxa5 {[%clk 0:02:50.4]} 16... Rxa5 {[%clk 0:02:18.6]} 17. Bb4
{[%clk 0:02:50.4]} 17... Ra8 {[%clk 0:02:17.6]} 18. a5 {[%clk 0:02:50.8]} 18...
bxa5 {[%clk 0:02:17.8]} 19. Bxa5 {[%clk 0:02:50.4]} 19... Ba6 {[%clk 0:02:17.9]}
20. Nb4 {[%clk 0:02:43.1]} 20... Nc5 {[%clk 0:02:16.5]} 21. Nxa6 {[%clk
0:02:33.8]} 21... Rxa6 {[%clk 0:02:15.8]} 22. Nb5 {[%clk 0:02:32.1]} 22... Rxa5
{[%clk 0:01:52.3]} 23. Rxa5 {[%clk 0:02:20.9]} 23... c6 {[%clk 0:01:52.2]} 24.
Ra2 {[%clk 0:01:36.7]} 24... cxb5 {[%clk 0:01:51]} 25. cxb5 {[%clk 0:01:37.6]}
25... Qb6 {[%clk 0:01:50.9]} 26. Kh1 {[%clk 0:01:35.1]} 26... g4 {[%clk
0:01:47.1]} 27. Qb1 {[%clk 0:01:21.6]} 27... Nh4 {[%clk 0:01:44.7]} 28. fxg4
{[%clk 0:01:17.6]} 28... Ng6 {[%clk 0:01:16.5]} 29. Qb4 {[%clk 0:01:15.1]} 29...
Bf6 {[%clk 0:01:07.2]} 30. Bf3 {[%clk 0:01:08.8]} 30... Nd3 {[%clk 0:01:05.1]}
31. Qd2 {[%clk 0:01:01.2]} 31... Nc5 {[%clk 0:00:47]} 32. Qa5 {[%clk 0:00:59.9]}
32... Rb8 {[%clk 0:00:38.1]} 33. Qxb6 {[%clk 0:00:56.9]} 33... Rxb6 {[%clk
0:00:39]} 34. Ra8+ {[%clk 0:00:56]} 34... Kg7 {[%clk 0:00:39.3]} 35. Rb1 {[%clk
0:00:52.7]} 35... Ne7 {[%clk 0:00:33.5]} 36. Ra7 {[%clk 0:00:49.9]} 36... Kf7
{[%clk 0:00:32.2]} 37. Rc7 {[%clk 0:00:43.1]} 37... Ke8 {[%clk 0:00:31]} 38. g5
{[%clk 0:00:38.5]} 38... Bxg5 {[%clk 0:00:29.9]} 39. Kg1 {[%clk 0:00:28.9]}
39... Kd8 {[%clk 0:00:29.7]} 40. Ra7 {[%clk 0:00:27.8]} 40... Bh4 {[%clk
0:00:24.8]} 41. Ra8+ {[%clk 0:00:26.5]} 41... Kc7 {[%clk 0:00:22.6]} 42. Rh8
{[%clk 0:00:25.5]} 42... Nd3 {[%clk 0:00:18.3]} 43. Rxh7 {[%clk 0:00:23.9]}
43... Bf6 {[%clk 0:00:14.7]} 44. Rf7 {[%clk 0:00:23.2]} 44... Bg5 {[%clk
0:00:14.4]} 45. Rg7 {[%clk 0:00:21.8]} 45... Bh4 {[%clk 0:00:14.4]} 46. g3
{[%clk 0:00:20.1]} 46... fxg3 {[%clk 0:00:14.2]} 47. hxg3 {[%clk 0:00:20.4]}
47... Bf6 {[%clk 0:00:14.8]} 48. Rf7 {[%clk 0:00:19.8]} 48... Bg5 {[%clk
0:00:15.3]} 49. Kg2 {[%clk 0:00:17]} 49... Nc5 {[%clk 0:00:13.5]} 50. Rg7 {[%clk
0:00:14.2]} 50... Bf6 {[%clk 0:00:13.3]} 51. Rf7 {[%clk 0:00:14.4]} 51... Bg5
{[%clk 0:00:13.8]} 52. Rg7 {[%clk 0:00:14.6]} 52... Bf6 {[%clk 0:00:11]} 53. Rf7
{[%clk 0:00:14.7]} 53... Nd7 {[%clk 0:00:10.4]} 54. Bg4 {[%clk 0:00:15.1]} 54...
Bg5 {[%clk 0:00:08.4]} 55. Rg7 {[%clk 0:00:13.8]} 55... Bf6 {[%clk 0:00:08.7]}
56. Rf7 {[%clk 0:00:13.7]} 56... Bg5 {[%clk 0:00:09.3]} 57. Rg7 {[%clk
0:00:13.8]} 57... Bf6 {[%clk 0:00:09.1]} 58. Rf7 {[%clk 0:00:14]} 1/2-1/2

[Event "Late-Titled-Tuesday-Blitz-September-19-2023"]
[Site "Chess.com"]
[Date "2023.09.19"]
[Round "2"]
[White "ural58"]
[Black "Rsnr"]
[Result "1-0"]
[WhiteElo "2561"]
[BlackElo "2849"]
[TimeControl "180+1"]
[EndTime "14:17:45 PDT"]
[Termination "ural58 won by resignation"]

1. e4 {[%clk 0:02:59.3]} 1... c6 {[%clk 0:02:54.3]} 2. Nf3 {[%clk 0:02:58.1]}
2... d5 {[%clk 0:02:53.6]} 3. e5 {[%clk 0:02:58.2]} 3... c5 {[%clk 0:02:51.7]}
4. c3 {[%clk 0:02:56.9]} 4... Nc6 {[%clk 0:02:49]} 5. Bb5 {[%clk 0:02:47.1]}
5... Bg4 {[%clk 0:02:47.1]} 6. h3 {[%clk 0:02:37]} 6... Bxf3 {[%clk 0:02:46.7]}
7. Qxf3 {[%clk 0:02:36.8]} 7... e6 {[%clk 0:02:46.6]} 8. Qg3 {[%clk 0:02:34.8]}
8... Ne7 {[%clk 0:02:36.5]} 9. f4 {[%clk 0:02:30.4]} 9... h5 {[%clk 0:02:34.5]}
10. h4 {[%clk 0:02:27.9]} 10... Nf5 {[%clk 0:02:33.7]} 11. Qf2 {[%clk
0:02:28.2]} 11... c4 {[%clk 0:02:32.4]} 12. b3 {[%clk 0:02:17.5]} 12... a6
{[%clk 0:02:28.7]} 13. Bxc6+ {[%clk 0:02:17.5]} 13... bxc6 {[%clk 0:02:29.6]}
14. g3 {[%clk 0:02:08.4]} 14... Qa5 {[%clk 0:01:23]} 15. bxc4 {[%clk 0:01:30.1]}
15... dxc4 {[%clk 0:01:23.9]} 16. Qf3 {[%clk 0:01:29.4]} 16... Qd5 {[%clk
0:01:22.5]} 17. Qxd5 {[%clk 0:01:28.1]} 17... cxd5 {[%clk 0:01:23.4]} 18. Kf2
{[%clk 0:01:28.3]} 18... Rb8 {[%clk 0:01:14.1]} 19. Ba3 {[%clk 0:01:22.7]} 19...
Kd7 {[%clk 0:01:09.8]} 20. Bxf8 {[%clk 0:01:21.4]} 20... Rhxf8 {[%clk
0:01:09.7]} 21. Na3 {[%clk 0:01:08.8]} 21... Rb2 {[%clk 0:01:09.5]} 22. Rhd1
{[%clk 0:01:06.4]} 22... Rfb8 {[%clk 0:01:06.1]} 23. Kf3 {[%clk 0:01:06.1]}
23... Kc6 {[%clk 0:01:04.6]} 24. Kf2 {[%clk 0:01:03.4]} 24... R8b6 {[%clk
0:01:00.7]} 25. Kf3 {[%clk 0:01:03.4]} 25... Kc5 {[%clk 0:00:57.9]} 26. Kf2
{[%clk 0:01:03]} 26... d4 {[%clk 0:00:57.8]} 27. Kf3 {[%clk 0:01:02.4]} 27... d3
{[%clk 0:00:37.7]} 28. g4 {[%clk 0:01:00.4]} 28... hxg4+ {[%clk 0:00:34.5]} 29.
Kxg4 {[%clk 0:01:00.6]} 29... Kd5 {[%clk 0:00:33.4]} 30. h5 {[%clk 0:00:59.4]}
30... Nh6+ {[%clk 0:00:30.5]} 31. Kf3 {[%clk 0:00:59.6]} 31... Nf5 {[%clk
0:00:31.4]} 32. Kg4 {[%clk 0:00:59.9]} 32... a5 {[%clk 0:00:31.5]} 33. Kg5
{[%clk 0:00:56.2]} 33... Nh6 {[%clk 0:00:29.3]} 34. Rab1 {[%clk 0:00:36]} 34...
Rxb1 {[%clk 0:00:20.6]} 35. Rxb1 {[%clk 0:00:34.3]} 35... Rxb1 {[%clk 0:00:21]}
36. Nxb1 {[%clk 0:00:34.5]} 36... Nf5 {[%clk 0:00:21.9]} 37. Na3 {[%clk
0:00:33.9]} 37... Ng3 {[%clk 0:00:21.4]} 38. Kg4 {[%clk 0:00:20.6]} 38... Ne4
{[%clk 0:00:20.6]} 39. Nb1 {[%clk 0:00:20]} 39... f6 {[%clk 0:00:05.6]} 40. exf6
{[%clk 0:00:18.6]} 40... Nxf6+ {[%clk 0:00:06.5]} 41. Kg5 {[%clk 0:00:18.5]}
41... Ke4 {[%clk 0:00:07.2]} 42. Na3 {[%clk 0:00:17.7]} 42... Kf3 {[%clk
0:00:05.7]} 43. Nxc4 {[%clk 0:00:17.3]} 43... Ke2 {[%clk 0:00:06.4]} 44. Kg6
{[%clk 0:00:15.7]} 44... Ne4 {[%clk 0:00:03.5]} 45. Kxg7 {[%clk 0:00:14]} 45...
Nxd2 {[%clk 0:00:03.9]} 46. Ne5 {[%clk 0:00:14.4]} 46... Nf3 {[%clk 0:00:02.6]}
47. Nxd3 {[%clk 0:00:15]} 47... Kxd3 {[%clk 0:00:03.5]} 48. h6 {[%clk
0:00:15.4]} 48... Kxc3 {[%clk 0:00:03.4]} 49. h7 {[%clk 0:00:15.2]} 49... Nd4
{[%clk 0:00:04.2]} 50. h8=Q {[%clk 0:00:14.9]} 50... a4 {[%clk 0:00:03.9]} 51.
Qc8+ {[%clk 0:00:14.5]} 51... Kb4 {[%clk 0:00:04.2]} 52. Qd7 {[%clk 0:00:13.6]}
52... Kc4 {[%clk 0:00:04.5]} 53. Qxa4+ {[%clk 0:00:13.5]} 1-0

[Event "Late-Titled-Tuesday-Blitz-September-19-2023"]
[Site "Chess.com"]
[Date "2023.09.19"]
[Round "2"]
[White "AlexandraBotez"]
[Black "szachmistrz2500"]
[Result "0-1"]
[WhiteElo "2299"]
[BlackElo "2503"]
[TimeControl "180+1"]
[EndTime "14:17:45 PDT"]
[Termination "szachmistrz2500 won by resignation"]

1. d4 {[%clk 0:03:00.9]} 1... c5 {[%clk 0:02:56.7]} 2. d5 {[%clk 0:03:00.4]}
2... e5 {[%clk 0:02:57]} 3. c4 {[%clk 0:02:59.8]} 3... d6 {[%clk 0:02:57.4]} 4.
Nc3 {[%clk 0:02:59.6]} 4... Ne7 {[%clk 0:02:57.7]} 5. g3 {[%clk 0:02:49.2]} 5...
Ng6 {[%clk 0:02:57.4]} 6. Bg2 {[%clk 0:02:49.5]} 6... a6 {[%clk 0:02:57.6]} 7.
Nf3 {[%clk 0:02:45.3]} 7... Be7 {[%clk 0:02:56.1]} 8. O-O {[%clk 0:02:44.7]}
8... h5 {[%clk 0:02:56.5]} 9. h4 {[%clk 0:02:44.3]} 9... Nd7 {[%clk 0:02:51.2]}
10. Bg5 {[%clk 0:02:42.9]} 10... Nf6 {[%clk 0:02:37.6]} 11. Nd2 {[%clk 0:02:35]}
11... Ng4 {[%clk 0:02:34.3]} 12. Bxe7 {[%clk 0:02:31.1]} 12... Qxe7 {[%clk
0:02:34.3]} 13. e4 {[%clk 0:02:29.3]} 13... Bd7 {[%clk 0:02:22.7]} 14. a4 {[%clk
0:02:29]} 14... f5 {[%clk 0:02:00.1]} 15. exf5 {[%clk 0:02:24.8]} 15... Bxf5
{[%clk 0:02:00.2]} 16. Nde4 {[%clk 0:02:24.3]} 16... O-O {[%clk 0:01:56]} 17.
Ng5 {[%clk 0:02:17.1]} 17... Bd7 {[%clk 0:01:46.6]} 18. Be4 {[%clk 0:01:59.8]}
18... Bf5 {[%clk 0:01:45.1]} 19. Qe2 {[%clk 0:01:46.6]} 19... Rf6 {[%clk
0:01:41.1]} 20. f3 {[%clk 0:01:41.6]} 20... Nh6 {[%clk 0:01:40.3]} 21. Kg2
{[%clk 0:01:37]} 21... Raf8 {[%clk 0:01:39.5]} 22. Rf2 {[%clk 0:01:31.9]} 22...
Nf7 {[%clk 0:01:39.4]} 23. Bxf5 {[%clk 0:01:28]} 23... Rxf5 {[%clk 0:01:29.6]}
24. Ne6 {[%clk 0:01:27.6]} 24... Re8 {[%clk 0:01:21.1]} 25. Qd3 {[%clk 0:01:16]}
25... Nh6 {[%clk 0:01:20.7]} 26. Ne4 {[%clk 0:01:11.7]} 26... Nf8 {[%clk
0:01:13.9]} 27. N6g5 {[%clk 0:01:05.5]} 27... Qd7 {[%clk 0:01:06.7]} 28. b3
{[%clk 0:01:00.1]} 28... Nf7 {[%clk 0:01:05.7]} 29. Raf1 {[%clk 0:00:54.5]}
29... Nxg5 {[%clk 0:01:00.4]} 30. Nxg5 {[%clk 0:00:54.5]} 30... g6 {[%clk
0:00:56]} 31. Qc2 {[%clk 0:00:37]} 31... b5 {[%clk 0:00:52.4]} 32. axb5 {[%clk
0:00:36.7]} 32... axb5 {[%clk 0:00:52.8]} 33. cxb5 {[%clk 0:00:25.6]} 33... Qxb5
{[%clk 0:00:52.2]} 34. g4 {[%clk 0:00:25.7]} 34... hxg4 {[%clk 0:00:38.4]} 35.
fxg4 {[%clk 0:00:25.2]} 35... Rxf2+ {[%clk 0:00:34.2]} 36. Qxf2 {[%clk
0:00:24.4]} 36... Qb7 {[%clk 0:00:34.5]} 37. Rd1 {[%clk 0:00:18]} 37... e4
{[%clk 0:00:32.3]} 38. Qe3 {[%clk 0:00:13.9]} 38... Qe7 {[%clk 0:00:30.6]} 39.
h5 {[%clk 0:00:13.5]} 39... gxh5 {[%clk 0:00:29.2]} 40. gxh5 {[%clk 0:00:14]}
40... Nd7 {[%clk 0:00:27.2]} 41. Rg1 {[%clk 0:00:13.8]} 41... Kh8 {[%clk
0:00:26.6]} 42. Kh1 {[%clk 0:00:13.2]} 42... Nf6 {[%clk 0:00:26.4]} 43. Ne6
{[%clk 0:00:13.4]} 43... Rg8 {[%clk 0:00:26.4]} 44. Qh6+ {[%clk 0:00:13.4]}
44... Nh7 {[%clk 0:00:24.6]} 45. Rg6 {[%clk 0:00:11.3]} 45... Qf7 {[%clk
0:00:23.6]} 46. Rxg8+ {[%clk 0:00:10.6]} 46... Kxg8 {[%clk 0:00:22.7]} 47. Qg6+
{[%clk 0:00:09]} 47... Qxg6 {[%clk 0:00:22.2]} 48. hxg6 {[%clk 0:00:09.9]} 48...
Nf8 {[%clk 0:00:22.2]} 49. Nxf8 {[%clk 0:00:09.5]} 49... Kxf8 {[%clk 0:00:22.5]}
50. Kg2 {[%clk 0:00:09]} 50... Kg7 {[%clk 0:00:23.4]} 51. Kg3 {[%clk 0:00:09.7]}
51... Kxg6 {[%clk 0:00:22.4]} 52. Kf4 {[%clk 0:00:10.4]} 52... Kf6 {[%clk
0:00:21.6]} 53. Kxe4 {[%clk 0:00:10.9]} 53... Kg5 {[%clk 0:00:22.1]} 54. Kd3
{[%clk 0:00:10.9]} 54... Kf4 {[%clk 0:00:22.1]} 55. Kc4 {[%clk 0:00:11.6]} 55...
Ke5 {[%clk 0:00:22.1]} 56. b4 {[%clk 0:00:07.7]} 56... cxb4 {[%clk 0:00:21.2]}
57. Kxb4 {[%clk 0:00:06.9]} 57... Kxd5 {[%clk 0:00:22.1]} 58. Kb3 {[%clk
0:00:07.4]} 58... Kd4 {[%clk 0:00:22]} 59. Kb2 {[%clk 0:00:06.2]} 59... Kd3
{[%clk 0:00:22]} 60. Kc1 {[%clk 0:00:06.7]} 60... d5 {[%clk 0:00:22]} 61. Kd1
{[%clk 0:00:07.3]} 61... d4 {[%clk 0:00:22.4]} 62. Ke1 {[%clk 0:00:07.8]} 62...
Kc2 {[%clk 0:00:22.8]} 0-1